lending/lending_fUSD_20250315
["ID","MTS","AMOUNT","RATE_DAILY","PERIOD"]
[356192687,1742056243006,-11865.24486169,9.88e-05,2]
[356192691,1742056243039,-2000.0,9.88e-05,2]
[356192693,1742056243050,-548.915419,9.88e-05,2]
[356192821,1742056244342,-176.70286645,9.88e-05,2]
[356192823,1742056244354,-1281.15998764,0.0001,2]
[356192826,1742056244366,-276.29565446,0.0001,2]
[356192828,1742056244378,-709.00241687,0.0001,2]
[356192830,1742056244391,-455.37695136,0.0001,2]
[356192850,1742056245700,-9886.5661,0.0001,2]
[356192887,1742056246420,-1509.11451349,0.0001,2]
[356192890,1742056246433,-4915.45314571,0.0001,2]
[356192892,1742056246445,-910.07126,0.0001,2]
[356192895,1742056246463,-269.38241397,0.0001,2]
[356192897,1742056246479,-1773.86365162,0.0001,2]
[356192899,1742056246491,-1280.31999976,0.0001,2]
[356192901,1742056246503,-2083.19796923,0.0001,2]
[356192904,1742056246514,-1143.97892178,0.0001,2]
[356193003,1742056455380,-526.6,9.9e-05,2]
[356193020,1742057432032,-526.6,9.85e-05,2]
[356193021,1742057432042,-11018.49603429,9.9e-05,2]
[356193022,1742057432054,-650.80746571,9.9e-05,2]
[356193023,1742057432065,-150.0,9.987e-05,2]
[356193024,1742057432074,-521.11217004,9.988e-05,2]
[356193025,1742057432146,-623.30477105,9.988e-05,2]
[356193026,1742057432158,-468.3,9.988e-05,2]
[356193027,1742057432405,-7482.33459811,9.988e-05,2]
[356193042,1742057437739,-494.01,9.988e-05,2]
[356193043,1742057437790,-1464.46322864,9.988e-05,2]
[356193044,1742057437844,-750.73795033,9.988e-05,2]
[356193049,1742057440138,-389.48,9.988e-05,2]
[356193050,1742057440399,-1266.908995,9.988e-05,2]
[356193051,1742057440411,-275.38069813,9.988e-05,2]
[356193065,1742057444580,-2695.75,9.988e-05,2]
[356193066,1742057444592,-781.89450995,9.988e-05,2]
[356193067,1742057444603,-12171.8442161,9.988e-05,2]
[356193068,1742057444615,-9622.39150227,9.988e-05,2]
[356193069,1742057444626,-9010.0609621,9.988e-05,2]
[356193070,1742057444638,-3922.4665164,9.988e-05,2]
[356193071,1742057444651,-2273.33895148,9.988e-05,2]
[356193072,1742057444660,-647.74721041,9.999e-05,2]
[356193073,1742057444672,-2385.01509259,9.999e-05,2]
[356193074,1742057444684,-1045.14,9.999e-05,2]
[356193075,1742057444704,-6066.55205642,9.999e-05,2]
[356193076,1742057444714,-500.0,9.999e-05,2]
[356193077,1742057444723,-270.24004725,9.999e-05,2]
[356193078,1742057444733,-500.0,9.999e-05,2]
[356193079,1742057444743,-286.61988361,9.999e-05,2]
[356193080,1742057444756,-1537.12852297,0.0001,2]
[356193084,1742057446101,-8480.53459531,0.0001,2]
[356193086,1742057775384,292.42263609,0.0002,120]
[356193113,1742058632144,-467.35525159,9.899e-05,2]
[356193114,1742058632154,-2356.2935,9.899e-05,2]
[356193115,1742058632164,-89.7044825,9.9e-05,2]
[356193116,1742058632196,-1270.8672175,9.9e-05,2]
[356193117,1742058632206,-294.64878565,9.9e-05,2]
[356193118,1742058632304,-2593.64311435,9.9e-05,2]
[356193119,1742058632315,-500.0,9.999e-05,2]
[356193120,1742058632325,-536.08209574,9.999e-05,2]
[356193121,1742058632334,-2482.53478991,0.0001,2]
[356193122,1742058632345,-3427.38798081,0.0001,2]
[356193123,1742058632357,-5339.99645225,0.0001,2]
[356193124,1742058632368,-1564.16322837,0.0001,2]
[356193125,1742058632380,-12556.73219376,0.0001,2]
[356193126,1742058632392,-5094.67861125,0.0001,2]
[356193674,1742058638010,-281.79260162,0.0001,2]
[356193688,1742058638141,-445.55,0.0001,2]
[356193699,1742058638235,-815.97000003,0.0001,2]
[356193713,1742058638367,-8065.01790578,0.0001,2]
[356193888,1742058640219,-157554.57151402,0.0001,2]
[356193890,1742058640229,-207969.36323978,0.0001,2]
[356193891,1742058640242,-1157.65390319,0.0001,2]
[356193894,1742058640253,-2308.98054962,0.0001,2]
[356193899,1742058640296,-6304.72199902,0.0001,2]
[356193901,1742058640308,-1557.74000002,0.0001,2]
[356193908,1742058640384,-688.38733407,0.0001,2]
[356193921,1742058640500,-58988.56606463,0.0001,2]
[356193923,1742058640512,-575.12443,0.0001,2]
[356193925,1742058640524,-305.55625204,0.0001,2]
[356193927,1742058640535,-150.0,0.00010835,2]
[356193929,1742058640546,-150.0,0.0001089,2]
[356193931,1742058640556,-150.0,0.00011,2]
[356193933,1742058640567,-2847.82755841,0.000129,2]
[356193935,1742058640578,-305.55625196,0.00014233,2]
[356193937,1742058640588,-575.12444,0.00015,2]
[356193939,1742058640598,-305.55625196,0.00018567,2]
[356193941,1742058640608,-575.12444,0.0002,2]
[356193943,1742058640619,-8279.6843694,0.0002,2]
[356193945,1742058640628,-500.0,0.00022219,2]
[356193947,1742058640639,-1559.47779497,0.00022344,2]
[356193949,1742058640650,-3798.0,0.000228,5]
[356193951,1742058640660,-305.55625196,0.000229,2]
[356193953,1742058640670,-300.0,0.00023519,2]
[356193955,1742058640680,-550.0,0.0002388,2]
[356193957,1742058640690,-649.062,0.00024291,6]
[356193959,1742058640700,-575.12443,0.00025,2]
[356193961,1742058640709,-462.57,0.0002522,2]
[356193963,1742058640719,-200.0,0.00026202,2]
[356193965,1742058640729,-153.160177,0.00026392,7]
[356193967,1742058640739,-151.0,0.00026392,7]
[356193969,1742058640750,-2000.0,0.00026477,2]
[356193971,1742058640760,-500.0,0.00026495,3]
[356193973,1742058640770,-2270.48,0.00026511,2]
[356193975,1742058640780,-158.8,0.00026849,2]
[356193977,1742058640790,-153.22,0.00026849,2]
[356193980,1742058640801,-590.94,0.00026849,2]
[356193983,1742058640811,-929.0,0.00027039,2]
[356193985,1742058640821,-254.29,0.0002714,2]
[356193987,1742058640831,-500.0,0.00027209,2]
[356193989,1742058640841,-250.0,0.00027209,2]
[356193991,1742058640851,-150.0,0.00027224,7]
[356193993,1742058640861,-305.55625196,0.00027233,2]
[356193995,1742058640871,-2093.12,0.00027233,2]
[356194006,1742058640966,-200.0,0.00027266,2]
[356194008,1742058640976,-23900.0,0.00027336,2]
[356194010,1742058640987,-150.0,0.00027365,2]
[356194012,1742058641002,-500.0,0.00027397,2]
[356194014,1742058641013,-500.0,0.00027397,2]
[356194016,1742058641023,-500.0,0.00027397,2]
[356194018,1742058641032,-500.0,0.00027397,2]
[356194020,1742058641042,-500.0,0.00027397,2]
[356194022,1742058641051,-500.0,0.00027397,2]
[356194024,1742058641061,-500.0,0.00027397,2]
[356194026,1742058641070,-500.0,0.00027397,2]
[356194027,1742058641079,-341.52522864,0.00027397,2]
[356194029,1742058641088,-500.0,0.00027397,2]
[356194031,1742058641100,-500.0,0.00027397,2]
[356194033,1742058641111,-500.0,0.00027397,2]
[356194036,1742058641121,-500.0,0.00027397,2]
[356194038,1742058641131,-500.0,0.00027397,2]
[356194039,1742058641141,-500.0,0.00027397,2]
[356194041,1742058641151,-500.0,0.00027397,2]
[356194043,1742058641161,-500.0,0.00027397,2]
[356194045,1742058641171,-500.0,0.00027397,2]
[356194047,1742058641180,-500.0,0.00027397,2]
[356194049,1742058641190,-500.0,0.00027397,2]
[356194051,1742058641200,-500.0,0.00027397,2]
[356194053,1742058641209,-439.06766004,0.00027397,2]
[356194055,1742058641219,-500.0,0.00027397,2]
[356194057,1742058641228,-500.0,0.00027397,2]
[356194059,1742058641238,-500.0,0.00027397,2]
[356194061,1742058641248,-500.0,0.00027397,2]
[356194063,1742058641258,-1000.0,0.00027473,2]
[356194065,1742058641267,-462.57,0.00027484,2]
[356194067,1742058641278,-6805.86,0.00027706,2]
[356194069,1742058641287,-848.64,0.0002771,2]
[356194071,1742058641297,-1000.0,0.00027711,2]
[356194073,1742058641306,-161.84,0.00027711,2]
[356194075,1742058641316,-161.84,0.00027837,2]
[356194077,1742058641326,-161.84,0.00027963,2]
[356194079,1742058641335,-166.69,0.00028005,2]
[356194081,1742058641345,-151.0,0.00028024,7]
[356194083,1742058641354,-161.84,0.00028089,2]
[356194085,1742058641363,-161.84,0.00028215,2]
[356194087,1742058641373,-161.84,0.0002834,2]
[356194089,1742058641383,-161.84,0.00028466,2]
[356194091,1742058641392,-161.84,0.00028592,2]
[356194093,1742058641403,-158.07,0.00028613,30]
[356194095,1742058641414,-3421.18758758,0.00028623,2]
[356194097,1742058641424,-161.84,0.00028718,2]
[356194099,1742058641433,-1500.0,0.000288,2]
[356194101,1742058641442,-151.85,0.00028831,2]
[356194103,1742058641453,-161.84,0.00028844,2]
[356194105,1742058641462,-151.85,0.00028911,2]
[356194107,1742058641471,-161.84,0.0002897,2]
[356194109,1742058641480,-151.85,0.00028991,2]
[356194111,1742058641490,-151.85,0.00029071,2]
[356194113,1742058641500,-161.84,0.00029096,2]
[356194115,1742058641509,-151.85,0.00029152,2]
[356194117,1742058641519,-151.85,0.00029232,2]
[356194119,1742058641528,-151.85,0.00029312,2]
[356194120,1742058641537,-151.85,0.00029392,2]
[356194122,1742058641547,-151.85,0.00029472,2]
[356194124,1742058641557,-151.85,0.00029552,2]
[356194126,1742058641566,-19850.0722695,0.00029601,2]
[356194128,1742058641576,-151.0,0.00029601,7]
[356194130,1742058641585,-526.59410661,0.00029623,2]
[356194132,1742058641594,-151.85,0.00029632,2]
[356194134,1742058641603,-151.85,0.00029712,2]
[356194136,1742058641612,-462.57,0.00029748,2]
[356194138,1742058641622,-151.85,0.00029792,2]
[356194140,1742058641631,-151.85,0.00029872,2]
[356194142,1742058641642,-151.85,0.00029952,2]
[356194144,1742058641652,-575.12444,0.0003,2]
[356194146,1742058641661,-151.85,0.00030032,2]
[356194148,1742058641671,-151.85,0.00030113,2]
[356194150,1742058641680,-151.85,0.00030193,2]
[356194152,1742058641690,-151.85,0.00030273,2]
[356194154,1742058641700,-1000.0,0.00030907,2]
[356194156,1742058641709,-305.55625196,0.00031567,2]
[356194158,1742058641719,-507.57736391,0.00032,120]
[356194160,1742058641728,-462.57,0.00032012,2]
[356194161,1742058641742,-158.8,0.00032646,2]
[356194163,1742058641754,-590.94,0.00032646,2]
[356194166,1742058641764,-462.57,0.00034275,2]
[356194167,1742058641774,-1000.0,0.00034341,2]
[356194169,1742058641784,-344.75,0.00034725,2]
[356194171,1742058641793,-158.07,0.0003477,120]
[356194174,1742058641803,-352.6721427,0.00034774,4]
[356194175,1742058641812,-3130.1384625,0.0003499,2]
[356194178,1742058641822,-151.05,0.0003499,2]
[356194180,1742058641831,-206.20225763,0.00035,120]
[356194181,1742058641840,-711.30450721,0.00035,120]
[356194220,1742058643176,-1490.69549279,0.00035,120]
[356194223,1742058643186,-507.57736391,0.00035,120]
[356194225,1742058643196,-575.12444,0.00035,2]
[356194226,1742058643205,-151.0,0.00035461,7]
[356194227,1742058643214,-3130.1384625,0.00035485,2]
[356194228,1742058643223,-1166.0,0.00035515,5]
[356194229,1742058643233,-151.0,0.00035515,7]
[356194230,1742058643242,-3387.08697003,0.0003589,2]
[356194231,1742058643252,-305.55625196,0.000359,2]
[356194232,1742058643263,-1307.0,0.0003602,20]
[356194233,1742058643273,-153.22,0.00036027,2]
[356194234,1742058643283,-163.3,0.00036346,2]
[356194235,1742058643292,-1307.0,0.00036392,20]
[356194236,1742058643302,-462.57,0.00036539,2]
[356194237,1742058643312,-19850.0722695,0.00036753,3]
[356194238,1742058643322,-151.0,0.00036763,7]
[356194239,1742058643332,-1307.0,0.00036763,20]
[356194240,1742058643342,-3130.1384625,0.0003699,3]
[356194241,1742058643351,-151.0,0.00037,7]
[356194242,1742058643360,-264.157274,0.00037,26]
[356194243,1742058643369,-900.0,0.00037,14]
[356194244,1742058643379,-900.0,0.00037,14]
[356194245,1742058643389,-900.0,0.00037,14]
[356194246,1742058643398,-900.0,0.00037,14]
[356194247,1742058643407,-900.0,0.00037,14]
[356194248,1742058643417,-900.0,0.00037,14]
[356194249,1742058643426,-900.0,0.00037,14]
[356194250,1742058643436,-900.0,0.00037,14]
[356194251,1742058643445,-900.0,0.00037,14]
[356194252,1742058643455,-900.0,0.00037,14]
[356194253,1742058643465,-1307.0,0.00037135,20]
[356194254,1742058643474,-492.42996776,0.00037135,20]
[356194255,1742058643484,-527.53993392,0.000372,103]
[356194256,1742058643493,-527.5399339,0.000372,103]
[356194257,1742058643502,-527.5399339,0.000372,103]
[356194258,1742058643511,-163.3,0.00037254,2]
[356194259,1742058643521,-151.0,0.00037465,7]
[356194260,1742058643530,-3130.1384625,0.00037485,3]
[356194261,1742058643539,-3130.1384625,0.00037486,3]
[356194262,1742058643548,-151.0,0.00037495,7]
[356194263,1742058643558,-1307.0,0.00037506,20]
[356194264,1742058643567,-1400.0,0.000377,13]
[356194265,1742058643576,-19850.0722695,0.00037765,3]
[356194266,1742058643586,-222.0,0.00037775,2]
[356194267,1742058643595,-5000.0,0.00037775,2]
[356194268,1742058643605,-1000.0,0.00037775,2]
[356194269,1742058643614,-3130.1384625,0.0003779,3]
[356194270,1742058643623,-2800.0,0.000378,13]
[356194271,1742058643632,-3130.1384625,0.00037855,3]
[356194272,1742058643641,-151.0,0.00037865,7]
[356194273,1742058643651,-19850.0722695,0.00037865,3]
[356194274,1742058643661,-9390.4153875,0.00037865,3]
[356194275,1742058643670,-37893.0,0.00037875,120]
[356194276,1742058643679,-295.607201,0.00037875,7]
[356194277,1742058643689,-1307.0,0.00037877,20]
[356194278,1742058643699,-414.37516385,0.0003788,2]
[356194279,1742058643709,-4200.0,0.000379,13]
[356194280,1742058643718,-19850.0722695,0.0003792,3]
[356194281,1742058643727,-3130.1384625,0.0003792,3]
[356194282,1742058643737,-151.0,0.0003795,7]
[356194283,1742058643746,-6260.276925,0.0003796,3]
[356194284,1742058643756,-279.703884,0.0003797,7]
[356194285,1742058643766,-357.48,0.0003797,2]
[356194286,1742058643775,-19850.0722695,0.0003797,3]
[356194287,1742058643785,-3130.1384625,0.0003797,3]
[356194288,1742058643794,-151.05,0.0003797,2]
[356194289,1742058643803,-500.0,0.00037973,5]
[356194290,1742058643812,-64645.81581082,0.0003798,3]
[356194291,1742058643848,-2767.83726989,0.0003798,3]
[356194292,1742058646115,-2578.72061342,0.0003798,3]
[356194293,1742058646168,-68958.13219187,0.0003798,3]
[356194294,1742058646180,-24947.33894205,0.0003798,3]
[356194295,1742058646223,-37655.43030795,0.0003798,3]
[356194296,1742058646233,-151.05,0.0003798,2]
[356194297,1742058646243,-13988.51968755,0.0003799,3]
[356194300,1742059508927,1000.0,0.0001,2]
[356194304,1742059707536,376.5226129,7.888e-05,2]
[356194313,1742059810761,-300.0,9.999e-05,2]
[356194314,1742059810786,-9700.0,0.0001,2]
[356194323,1742059832462,-4195.04492991,0.0001,2]
[356194324,1742059832620,-15578.45184087,0.0001,2]
[356194325,1742059832632,-5367.44358273,0.0001,2]
[356194326,1742059832644,-11288.42305707,0.0001,2]
[356194327,1742059832656,-2713.41870451,0.0001,2]
[356194343,1742059838105,-2423.71764361,0.0001,2]
[356194344,1742059838117,-20949.49395105,0.0001,2]
[356194345,1742059838129,-2587.42803,0.0001,2]
[356194346,1742059838141,-4442.40000004,0.0001,2]
[356194357,1742059840745,-43788.09730321,0.0001,2]
[356194358,1742059840764,-1169.71325013,0.0001,2]
[356194379,1742059846530,-5954.58503882,0.0001,2]
[356194380,1742059846608,-661.57931554,0.0001,2]
[356194381,1742059846664,-6954.19927067,0.0001,2]
[356194387,1742059846804,-703.02182691,0.0001,2]
[356194388,1742059846818,-1207.60430805,0.0001,2]
[356194389,1742059846844,-974.2,0.0001,2]
[356194390,1742059847862,-1000.0,0.0001,2]
[356194402,1742061032445,-2787.72012411,9.999e-05,2]
[356194410,1742061040876,-237.49565415,9.999e-05,2]
[356194411,1742061040886,-446.4584458,0.0001,2]
[356194434,1742061896460,164.95,9.574e-05,2]
[356194436,1742062231909,-5235.90457079,9.9e-05,2]
[356194455,1742062239779,-1258.12660062,9.9e-05,2]
[356194456,1742062239790,-2705.8549858,9.9e-05,2]
[356194457,1742062239835,-38453.10218544,9.9e-05,2]
[356194458,1742062240052,-543.25789614,9.9e-05,2]
[356194530,1742063431791,-700.0,9.899e-05,2]
[356194531,1742063431802,-643.13199394,9.9e-05,2]
[356194532,1742063431814,-356.86800606,9.9e-05,2]
[356194533,1742063431824,-45.81193286,9.9e-05,2]
[356194534,1742063434952,-223.55346714,9.9e-05,2]
[356194535,1742063434961,-1314.1830843,9.9e-05,2]
[356194536,1742063434973,-411.97637999,9.9e-05,2]
[356194537,1742063435011,-724.142,9.9e-05,2]
[356194538,1742063435071,-777.80703571,9.9e-05,2]
[356194539,1742063435080,-572.30856547,9.999e-05,2]
[356194540,1742063435092,-620.43137734,9.999e-05,2]
[356194541,1742063435101,-297.7579943,9.999e-05,2]
[356194602,1742063437715,-202.2420057,9.999e-05,2]
[356194603,1742063437725,-435.0246704,9.999e-05,2]
[356194604,1742063437735,-208.1733239,9.999e-05,2]
[356194699,1742063444480,-291.8266761,9.999e-05,2]
[356194700,1742063444490,-226.71332397,9.999e-05,2]
[356194701,1742063444541,-273.28667603,9.999e-05,2]
[356194702,1742063444551,-500.0,9.999e-05,2]
[356194703,1742063444561,-500.0,9.999e-05,2]
[356194704,1742063444573,-500.0,9.999e-05,2]
[356194705,1742063444583,-500.0,9.999e-05,2]
[356194706,1742063444592,-131.51332397,9.999e-05,2]
[356194707,1742063444603,-368.48667603,9.999e-05,2]
[356194708,1742063444613,-500.0,9.999e-05,2]
[356194709,1742063444623,-500.0,9.999e-05,2]
[356194710,1742063444632,-500.0,9.999e-05,2]
[356194711,1742063444643,-208.1733239,9.999e-05,2]
[356194717,1742063445708,-291.8266761,9.999e-05,2]
[356194718,1742063445718,-500.0,9.999e-05,2]
[356194719,1742063445728,-500.0,9.999e-05,2]
[356194720,1742063445738,-199.86225898,9.999e-05,2]
[356194721,1742063445748,-500.0,9.999e-05,2]
[356194722,1742063445758,-500.0,9.999e-05,2]
[356194723,1742063445768,-133.92697813,9.999e-05,2]
[356194724,1742063445877,-366.07302187,9.999e-05,2]
[356194725,1742063445886,-4176.63502803,0.0001,2]
[356194726,1742063445897,-505.61707126,0.0001,2]
[356194749,1742064631951,-445.61213266,9.9e-05,2]
[356194750,1742064632008,-3162.86826734,9.9e-05,2]
[356194751,1742064632019,-500.0,9.9e-05,2]
[356194752,1742064632029,-2500.0,9.9e-05,2]
[356194753,1742064632038,-550.0,9.949e-05,2]
[356194754,1742064632047,-150.0,9.999e-05,2]
[356194755,1742064632057,-500.0,9.999e-05,2]
[356194756,1742064632067,-466.65136211,9.999e-05,2]
[356194757,1742064632076,-2776.01813558,0.0001,2]
[356194758,1742064632088,-37074.40262981,0.0001,2]
[356194785,1742064638336,-2632.5,0.0001,2]
[356194854,1742064640123,-276.8205,0.0001,2]
[356194880,1742064643124,-32647.3994626,0.0001,2]
[356194888,1742064646133,-3121.26189981,0.0001,2]
[356195437,1742065838146,-927.6905,9.9e-05,2]
[356195439,1742065838155,-448.8729,9.9e-05,2]
[356195441,1742065838165,-151.4083,9.9e-05,2]
[356195443,1742065838174,-1389.2168,9.9e-05,2]
[356195445,1742065838183,-419.9389,9.9e-05,2]
[356195447,1742065838192,-150.0,9.912e-05,2]
[356195449,1742065838202,-150.0,9.999e-05,2]
[356195451,1742065838211,-9.42527217,0.0001,2]
[356195453,1742065838222,-949.82050932,0.0001,2]
[356195455,1742065838233,-921.55,0.0001,2]
[356195457,1742065838244,-1200.0,0.0001,2]
[356195460,1742065838286,-1217.63557993,0.0001,2]
[356195461,1742065838298,-602.48168055,0.0001,2]
[356195651,1742065840261,-65344.81740699,0.0001,2]
[356195653,1742065840275,-87825.24602536,0.0001,2]
[356195667,1742065840403,-2656.70605,0.0001,2]
[356195669,1742065840416,-1099.24815,0.0001,2]
[356195672,1742065840430,-625.42636932,0.0001,2]
[356195674,1742065840443,-26921.90199037,0.0001,2]
[356195680,1742065840485,-413.405,0.0001,2]
[356196245,1742065846144,-4217.55,0.0001,2]
[356196657,1742066328721,-194.85218507,9.8e-05,2]
[356196658,1742066358294,-194.85218507,9.8e-05,2]
[356196659,1742066538361,-150.0,9.8e-05,2]
[356196660,1742066706234,-316.74363221,9.7e-05,2]
[356196661,1742066733305,-143.55199765,9.7e-05,2]
[356196662,1742066733331,-6.44800235,9.7e-05,2]
[356196663,1742066913418,-156.9462,9.7e-05,2]
[356197198,1742067038249,-493.97951791,9.7e-05,2]
[356197204,1742067038305,-342.62627974,9.7e-05,2]
[356197206,1742067038314,-1000.0,9.7e-05,2]
[356197208,1742067038324,-1678.0,9.7e-05,2]
[356197210,1742067038334,-150.0,9.775e-05,2]
[356197212,1742067038343,-156.9462,9.8e-05,2]
[356197214,1742067038353,-8001.79683003,9.9e-05,3]
[356197216,1742067038362,-5993.626303,9.999e-05,2]
[356197217,1742067038371,-150.0,9.999e-05,2]
[356197219,1742067038380,-53738.89835021,0.0001,2]
[356197221,1742067038389,-246.76974,0.0001,2]
[356197223,1742067038399,-509.4153173,0.0001,2]
[356197225,1742067038408,-5548.0,0.000101,5]
[356197227,1742067038417,-150.0,0.0001067,2]
[356197228,1742067038427,-1532.517446,0.00010876,2]
[356197230,1742067038437,-462.89652113,0.00010876,2]
[356197232,1742067038446,-550.0,0.0001089,2]
[356197234,1742067038455,-152.10919088,0.00010967,2]
[356197236,1742067038464,-550.0,0.00010999,2]
[356197238,1742067038474,-550.0,0.00010999,2]
[356197239,1742067038482,-150.0,0.00010999,2]
[356197241,1742067038491,-246.76975,0.000111,4]
[356197243,1742067038501,-150.99,0.00012087,2]
[356197245,1742067038510,-246.76975,0.0001235,7]
[356197247,1742067038519,-150.0,0.00012892,2]
[356197249,1742067038528,-999.99,0.00012893,2]
[356197250,1742067038537,-9999.99,0.00012893,2]
[356197252,1742067038547,-9999.99,0.00012893,2]
[356197254,1742067038557,-372.32,0.00012893,2]
[356197256,1742067038566,-3146.79300016,0.000131,2]
[356197258,1742067038575,-246.76974,0.000136,10]
[356197260,1742067038584,-151.0,0.00014504,2]
[356197262,1742067038593,-151.0,0.00014504,2]
[356197263,1742067038603,-246.76975,0.0001485,12]
[356197265,1742067038612,-246.76975,0.000161,15]
[356197267,1742067038621,-176.98,0.000186,2]
[356197269,1742067038632,-250.0,0.00019,2]
[356197271,1742067038640,-300.0,0.00021,2]
[356197273,1742067038650,-544.45,0.00021202,2]
[356197275,1742067038659,-247.87,0.00021505,2]
[356197276,1742067038668,-1000.0,0.00021659,2]
[356197278,1742067038677,-23900.0,0.00021763,2]
[356197280,1742067038687,-3286.08,0.00021953,2]
[356197282,1742067038696,-893.45,0.00022156,2]
[356197284,1742067038705,-200.0,0.00022308,2]
[356197286,1742067038715,-151.0,0.00022438,7]
[356197287,1742067038725,-176.09,0.00022488,2]
[356197289,1742067038734,-15578.45,0.00022627,2]
[356197291,1742067038745,-7346.99153,0.00022629,2]
[356197293,1742067038756,-216.41,0.00022635,2]
[356197295,1742067038765,-2000.0,0.00022652,2]
[356197297,1742067038775,-1500.0,0.00022684,2]
[356197299,1742067038784,-426.22,0.000227,2]
[356197300,1742067038795,-588.27,0.00022729,2]
[356197302,1742067038804,-314.64,0.00022732,2]
[356197304,1742067038813,-306.59,0.00022732,3]
[356197306,1742067038824,-2751.0,0.00022732,2]
[356197308,1742067038833,-150.0,0.00022732,2]
[356197310,1742067038842,-500.0,0.00022733,2]
[356197311,1742067038851,-507.91,0.0002283,2]
[356197313,1742067038861,-250.0,0.0002283,2]
[356197315,1742067038870,-152.3,0.00022885,30]
[356197317,1742067038879,-150.0,0.00022897,7]
[356197319,1742067038889,-171.168,0.0002298,2]
[356197321,1742067038899,-151.0,0.0002298,2]
[356197323,1742067038908,-200.0,0.00023,2]
[356197325,1742067038918,-350.0,0.00023,2]
[356197326,1742067038928,-275.83092687,0.0002301,120]
[356197328,1742067038937,-245.520126,0.00023185,7]
[356197330,1742067038946,-544.45,0.00023466,2]
[356197332,1742067038956,-157.71,0.00023503,2]
[356197334,1742067038965,-166.59,0.00023562,2]
[356197336,1742067038975,-197.33,0.00023765,2]
[356197338,1742067038985,-288.21,0.00023836,2]
[356197340,1742067038995,-193.44,0.00024257,2]
[356197341,1742067039006,-762.919,0.00024291,6]
[356197343,1742067039015,-193.44,0.00024321,2]
[356197345,1742067039024,-1000.0,0.00024367,2]
[356197347,1742067039034,-193.44,0.00024385,2]
[356197349,1742067039043,-193.44,0.00024449,2]
[356197351,1742067039053,-193.44,0.00024513,2]
[356197353,1742067039062,-154.86,0.00024529,2]
[356197354,1742067039072,-193.44,0.00024576,2]
[356197356,1742067039087,-193.44,0.0002464,2]
[356197358,1742067039097,-1000.0,0.00024658,2]
[356197360,1742067039107,-157.71,0.00024678,2]
[356197362,1742067039116,-193.44,0.00024704,2]
[356197364,1742067039125,-193.44,0.00024768,2]
[356197366,1742067039134,-193.44,0.00024832,2]
[356197367,1742067039143,-193.44,0.00024896,2]
[356197369,1742067039152,-193.44,0.00024959,2]
[356197371,1742067039161,-176.08,0.00024998,2]
[356197373,1742067039170,-400.0,0.00025,2]
[356197375,1742067039179,-193.44,0.00025023,2]
[356197377,1742067039189,-6127.93000467,0.00025029,2]
[356197379,1742067039206,-932.58255358,0.00025029,2]
[356197474,1742067040413,-286.47897168,0.00025029,2]
[356197476,1742067040422,-193.44,0.00025087,2]
[356197478,1742067040432,-350.0,0.000251,2]
[356197480,1742067040441,-193.44,0.00025151,2]
[356197482,1742067040450,-193.44,0.00025215,2]
[356197484,1742067040460,-193.44,0.00025279,2]
[356197486,1742067040469,-193.44,0.00025343,2]
[356197488,1742067040478,-193.44,0.00025406,2]
[356197490,1742067040487,-193.44,0.0002547,2]
[356197492,1742067040496,-544.45,0.00025729,2]
[356197494,1742067040505,-154.86,0.00025756,2]
[356197496,1742067040515,-197.33,0.00026736,120]
[356197498,1742067040524,-531.84,0.00026849,2]
[356197500,1742067040534,-191.3,0.00026849,2]
[356197502,1742067040543,-157.01,0.00026849,2]
[356197504,1742067040552,-450.0,0.00027,2]